bitfinex/quotes_ETHUSD_20250602
["timestamp","ask_amount","ask_price","bid_price","bid_amount"]
[1748857245082,7.58989965,2483.6,2483.3,0.8203]
[1748857245484,3.56348314,2483.6,2483.3,0.8203]
[1748857246018,3.56348314,2483.6,2483.4,4.02667377]
[1748857246208,7.58957364,2483.8,2483.3,4.84713131]
[1748857246381,9.61888767,2483.8,2483.3,4.84713131]
[1748857247116,3.56348314,2483.6,2483.3,4.84713131]
[1748857248119,3.56348314,2483.7,2483.3,4.84713131]
[1748857248321,7.58974478,2483.7,2483.3,4.84713131]
[1748857249217,3.56348314,2483.7,2483.3,4.84713131]
[1748857249715,7.58976599,2483.7,2483.3,4.84713131]
[1748857250218,3.56348314,2483.5,2483.3,0.8203]
[1748857250399,7.59009923,2483.5,2483.3,0.8203]
[1748857250716,3.56348314,2483.5,2483.3,0.8203]
[1748857251021,3.56348314,2483.5,2483.1,5.99433241]
[1748857251218,7.5900697,2483.5,2483.1,5.99433241]
[1748857251419,3.56348314,2483.5,2483.2,1.151]
[1748857251639,4.72511315,2483.5,2483.2,5.17805816]
[1748857252247,3.56348314,2483.3,2483.2,1.151]
[1748857253448,4.72511315,2483.5,2483.2,1.151]
[1748857253632,8.75169303,2483.5,2483.2,1.151]
[1748857253852,4.72511315,2483.5,2483.2,1.151]
[1748857254049,1.30036071,2483.4,2483.2,1.151]
[1748857255246,3.56348314,2483.5,2483.2,1.151]
[1748857255833,4.252,2483.6,2483.2,5.17794482]
[1748857256026,4.252,2483.6,2483.3,4.02681992]
[1748857256228,4.252,2483.6,2483.2,5.17797714]
[1748857256438,8.27842139,2483.6,2483.2,5.17797714]
[1748857257726,4.252,2483.6,2483.2,5.17797714]
[1748857257922,8.27841963,2483.6,2483.2,5.17797714]
[1748857258454,8.27842078,2483.6,2483.2,5.17797714]
[1748857258658,4.252,2483.6,2483.2,5.17797714]
[1748857259354,7.58981387,2483.7,2483.2,5.17797714]
[1748857259731,11.84181387,2483.7,2483.2,5.17797714]
[1748857260349,3.56348314,2483.7,2483.2,1.151]
[1748857260655,3.56348314,2483.7,2483.2,5.17796786]
[1748857260656,7.58980939,2483.7,2483.2,5.17796786]
[1748857261779,4.02642984,2483.6,2483.2,5.17796786]
[1748857262679,7.58981177,2483.7,2483.2,5.17796786]
[1748857262825,3.56348314,2483.7,2483.3,4.02678094]
[1748857263025,3.56348314,2483.7,2483.4,4.02668762]
[1748857264266,7.81448314,2483.8,2483.5,4.02657393]
[1748857264647,7.68345694,2484.0,2483.5,4.8008342]
[1748857264831,3.65762935,2484.0,2483.6,4.02638975]
[1748857265036,3.56348314,2483.9,2483.6,4.02638975]
[1748857265349,7.58944926,2483.9,2483.5,0.7744]
[1748857265559,7.58944926,2483.9,2483.4,4.02664641]
[1748857265859,4.02610544,2483.8,2483.4,4.02664641]
[1748857266061,7.58976366,2483.7,2483.4,1.149]
[1748857266557,3.56348314,2483.8,2483.4,5.17566349]
[1748857266759,11.93447579,2484.0,2483.4,1.149]
[1748857267062,3.56348314,2483.9,2483.6,4.0264054]
[1748857267364,5.59633233,2483.9,2483.6,4.0264054]
[1748857267658,3.56348314,2483.9,2483.5,4.02649479]
[1748857267839,7.58941019,2483.9,2483.5,4.02649479]
[1748857268683,7.58941019,2483.9,2483.4,5.17565838]
[1748857269064,3.56348314,2483.7,2483.4,1.149]
[1748857269379,7.5898563,2483.7,2483.3,1.9774]
[1748857269675,5.50816841,2483.7,2483.3,1.9774]
[1748857269823,4.0264195,2483.6,2483.3,1.149]
[1748857270160,3.56348314,2483.5,2483.1,0.01]
[1748857270366,3.56348314,2483.3,2483.1,0.01]
[1748857271162,7.59006865,2483.5,2483.1,4.0371547]
[1748857271368,7.59006865,2483.5,2483.1,0.01]
[1748857271567,4.02649206,2483.6,2483.1,0.01]
[1748857271866,3.56348314,2483.5,2483.1,4.03713351]
[1748857272170,3.56348314,2483.3,2483.1,0.01]
[1748857274243,7.59041995,2483.3,2483.1,0.01]
[1748857274567,4.78676185,2483.2,2483.1,0.01]
[1748857274772,5.33676185,2483.2,2483.1,0.01]
[1748857278873,5.35596185,2483.2,2483.1,0.01]
[1748857284081,7.77196185,2483.2,2483.1,0.01]
[1748857285172,0.759042,2483.3,2483.1,0.01]
[1748857285462,3.56348314,2483.4,2483.1,0.01]
[1748857285665,8.42651948,2483.4,2483.1,0.01]
[1748857285971,3.56348314,2483.4,2483.1,0.01]
[1748857286167,3.56348314,2483.4,2483.1,4.03713959]
[1748857286358,3.56348314,2483.4,2483.1,0.01]
[1748857287285,3.56348314,2483.4,2483.2,0.8166]
[1748857287483,7.81248314,2483.6,2483.3,4.02682733]
[1748857288478,7.81248314,2483.6,2483.2,4.84362594]
[1748857288984,3.56348314,2483.4,2483.2,4.84362594]
[1748857289779,4.02706185,2483.2,2483.1,0.01]
[1748857289964,3.56348314,2483.2,2483.1,0.01]
[1748857290892,3.56348314,2483.6,2483.1,0.01]
[1748857291188,3.56348314,2483.6,2483.2,4.81279177]
[1748857291391,3.56348314,2483.6,2483.3,4.02676526]
[1748857291554,7.81148314,2483.6,2483.3,4.02680787]
[1748857291957,11.83790868,2483.6,2483.2,4.81279343]
[1748857292194,3.56348314,2483.4,2483.2,4.81279343]
[1748857292863,7.59032974,2483.4,2483.1,0.01]
[1748857293057,3.56348314,2483.2,2483.1,4.03722403]
[1748857295707,3.56348314,2483.2,2483.1,0.01]
[1748857297628,7.59054499,2483.2,2483.1,0.01]
[1748857297827,3.56348314,2483.2,2483.1,0.01]
[1748857298124,3.56348314,2483.4,2483.1,4.84012403]
[1748857298267,4.36068314,2483.6,2483.2,4.02698282]
[1748857298471,4.247,2483.5,2483.2,4.02695298]
[1748857298777,7.81048314,2483.6,2483.3,4.02680914]
[1748857299099,7.81048314,2483.6,2483.1,0.8129]
[1748857299304,7.81048314,2483.6,2483.3,4.02681595]
[1748857299603,3.56348314,2483.7,2483.1,0.8129]
[1748857299772,3.56348314,2483.7,2483.3,4.02680822]
[1748857299974,3.56348314,2483.7,2483.4,4.02671967]
[1748857300170,3.56348314,2483.7,2483.4,4.02666596]
[1748857300503,3.56348314,2483.7,2483.4,4.85316596]
[1748857300895,3.05719913,2484.0,2483.8,4.02608905]
[1748857301081,4.02507167,2484.5,2483.5,4.02657539]
[1748857301082,4.39038314,2484.4,2483.9,4.02592696]
[1748857301284,4.39038314,2484.4,2484.0,4.02572014]
[1748857301605,4.39038314,2484.4,2483.8,0.7635]
[1748857301606,3.56348314,2484.2,2483.8,0.7635]
[1748857301792,3.56348314,2484.0,2483.8,0.7635]
[1748857303594,3.56348314,2484.0,2483.8,4.78957179]
[1748857304092,3.56348314,2484.0,2483.8,0.7635]
[1748857305294,3.56348314,2484.0,2483.8,4.78956812]
[1748857305679,3.56348314,2484.0,2483.8,0.7635]
[1748857308602,3.56348314,2483.8,2483.5,4.02656913]
[1748857309181,3.56348314,2483.8,2483.6,4.02627592]
[1748857309491,4.244,2483.9,2483.6,4.02629302]
[1748857309884,4.244,2483.9,2483.5,4.02649193]
[1748857310312,4.244,2483.9,2483.4,1.9143]
[1748857310313,3.56348314,2483.8,2483.4,5.94096643]
[1748857310515,3.56348314,2483.8,2483.4,1.9143]
[1748857310516,7.58964737,2483.8,2483.4,1.9143]
[1748857310713,3.56348314,2483.6,2483.4,1.9143]
[1748857310912,3.56348314,2483.6,2483.5,4.02657539]
[1748857311100,3.56348314,2483.6,2483.4,5.94097821]
[1748857311616,3.56348314,2483.6,2483.5,4.02657539]
[1748857311803,3.56348314,2483.8,2483.5,4.02657539]
[1748857312400,3.56348314,2483.8,2483.5,4.02654326]
[1748857312784,3.56348314,2483.8,2483.4,5.94094286]
[1748857313218,3.56348314,2483.8,2483.5,4.02643847]
[1748857313804,3.56348314,2483.8,2483.6,4.02639136]
[1748857314016,3.56348314,2483.8,2483.5,4.02649466]
[1748857315301,3.56348314,2483.8,2483.5,4.02657532]
[1748857315626,3.56348314,2483.8,2483.4,1.9143]
[1748857316014,3.56348314,2483.8,2483.5,4.02648877]
[1748857318394,3.56348314,2483.8,2483.4,1.9143]
[1748857318589,3.56348314,2483.8,2483.5,4.02657413]
[1748857318816,7.58957825,2483.8,2483.4,1.9143]
[1748857319019,3.56348314,2483.8,2483.4,5.94098439]
[1748857319209,3.56348314,2483.8,2483.4,1.9143]
[1748857319410,3.56348314,2483.8,2483.5,4.0264232]
[1748857319608,3.56348314,2483.8,2483.6,4.02638025]
[1748857320432,3.56348314,2483.8,2483.5,4.02652748]
[1748857320608,3.56348314,2483.8,2483.5,4.02657539]
[1748857321832,3.56348314,2483.8,2483.4,5.94094791]
[1748857322032,7.58964523,2483.8,2483.4,1.9143]
[1748857322338,7.58964523,2483.8,2483.4,5.94102853]
[1748857322540,3.56348314,2483.8,2483.4,5.94102853]
[1748857323755,7.58964973,2483.8,2483.4,1.9143]
[1748857324117,3.56348314,2483.8,2483.4,1.9143]
[1748857324316,3.56348314,2483.8,2483.5,4.026565]
[1748857324551,3.56348314,2483.8,2483.6,4.02637198]
[1748857325069,3.56348314,2483.8,2483.5,4.02656927]
[1748857325070,3.56348314,2483.8,2483.5,4.02653438]
[1748857325741,3.56348314,2483.8,2483.4,5.93896145]
[1748857326341,7.58958529,2483.8,2483.4,1.9123]
[1748857326655,7.58958529,2483.8,2483.1,0.01]
[1748857326656,3.56348314,2483.6,2483.1,0.01]
[1748857326858,7.80448314,2483.6,2483.5,4.02657539]
[1748857327041,7.80448314,2483.6,2483.3,4.02682522]
[1748857327241,7.80448314,2483.6,2483.4,4.02665671]
[1748857328135,3.56348314,2483.8,2483.5,4.02657539]
[1748857328331,3.56348314,2483.8,2483.4,4.02664125]
[1748857328532,8.64405253,2483.8,2483.4,4.02664125]
[1748857328731,12.67019253,2483.8,2483.4,4.02664125]
[1748857329233,4.02625762,2483.7,2483.3,4.80283535]
[1748857329657,3.56348314,2483.6,2483.3,4.80283535]
[1748857329950,3.56348314,2483.6,2483.2,4.02697068]
[1748857330121,7.58989731,2483.6,2483.1,4.03711299]
[1748857330321,0.7927,2483.5,2483.1,5.18111299]
[1748857330526,3.56348314,2483.4,2483.1,5.18111299]
[1748857332057,3.56348314,2483.2,2483.1,0.01]
[1748857332259,8.35624499,2483.2,2483.1,0.01]
[1748857332423,12.59624499,2483.2,2483.1,0.01]
[1748857332956,15.56224499,2483.2,2483.1,0.01]
[1748857333157,5.34276185,2483.2,2483.1,0.01]
[1748857333343,9.41731946,2483.2,2483.1,0.01]
[1748857333657,14.20731946,2483.2,2483.1,0.01]
[1748857336562,9.96731946,2483.2,2483.1,0.01]
[1748857336717,14.20731946,2483.2,2483.1,0.01]
[1748857342170,2.37677447,2483.2,2483.1,0.01]
[1748857342369,14.20631946,2483.2,2483.1,0.01]
[1748857343326,9.41731946,2483.2,2483.1,0.01]
[1748857343543,8.86355761,2483.2,2483.1,0.01]
[1748857344243,4.02697401,2483.3,2483.1,0.01]
[1748857344244,3.56348314,2483.3,2483.1,0.01]
[1748857344438,7.59046248,2483.3,2483.1,0.01]
[1748857344846,3.56348314,2483.3,2483.1,0.01]
[1748857345261,7.59038413,2483.3,2483.1,0.01]
[1748857346072,4.02706185,2483.2,2483.1,0.01]
[1748857346277,5.6893308,2483.2,2483.1,0.01]
[1748857348380,7.0398308,2483.2,2483.1,0.01]
[1748857348985,9.4558308,2483.2,2483.1,0.01]
[1748857349858,7.0398308,2483.2,2483.1,0.01]
[1748857350186,10.60331394,2483.2,2483.1,0.01]
[1748857350482,14.29131394,2483.2,2483.1,0.01]
[1748857351269,14.84131394,2483.2,2483.1,0.01]
[1748857358187,14.84031394,2483.2,2483.1,0.01]
[1748857358905,1.66226895,2483.2,2483.1,0.01]
[1748857359214,4.237,2483.2,2483.1,0.01]
[1748857359907,4.237,2483.2,2483.1,0.8267]
[1748857361206,3.56348314,2483.3,2483.1,0.8267]
[1748857361421,7.80048314,2483.3,2483.1,0.8267]
[1748857361764,3.56348314,2483.3,2483.1,0.8267]
[1748857362212,11.82738715,2483.3,2483.1,0.8267]
[1748857364911,4.02706185,2483.2,2483.1,0.8267]
[1748857365113,4.02706185,2483.2,2483.1,0.01]
[1748857365610,8.26306185,2483.2,2483.1,0.01]
[1748857366471,4.236,2483.2,2483.1,0.01]
[1748857366977,8.26306185,2483.2,2483.1,0.01]
[1748857368518,4.236,2483.2,2483.1,0.01]
[1748857368719,3.56348314,2483.4,2483.1,0.01]
[1748857368902,0.8105,2483.7,2483.1,0.01]
[1748857368903,4.235,2483.5,2483.2,0.7571]
[1748857369083,4.235,2483.5,2483.2,4.78408754]
[1748857369418,0.73739159,2483.9,2483.2,2.37750875]
[1748857369623,3.56348314,2484.2,2483.4,0.8312]
[1748857369791,7.79848314,2484.2,2483.9,0.8312]
[1748857369995,7.79848314,2484.2,2483.9,4.85711675]
[1748857370208,7.79848314,2484.2,2483.9,0.8312]
[1748857371021,3.56348314,2484.0,2483.9,0.8312]
[1748857371221,3.56348314,2484.0,2483.7,0.7752]
[1748857371519,3.56348314,2483.8,2483.7,4.80143506]
[1748857371679,3.56348314,2483.8,2483.7,0.7752]
[1748857373106,3.56348314,2483.8,2483.4,4.79918589]
[1748857373301,3.56348314,2483.6,2483.4,5.94022495]
[1748857373517,3.56348314,2483.6,2483.4,1.9135]
[1748857374030,4.234,2483.8,2483.4,1.9135]
[1748857374227,3.56348314,2483.6,2483.4,5.94016982]
[1748857375814,3.56348314,2483.6,2483.4,5.94014648]
[1748857376012,3.56348314,2483.6,2483.5,4.02657539]
[1748857376217,3.56348314,2483.6,2483.4,6.93685381]
[1748857377211,3.56348314,2483.6,2483.4,5.94015615]
[1748857378499,3.56348314,2483.6,2483.5,4.02657539]
[1748857379514,3.56348314,2483.6,2483.4,5.94016167]
[1748857380520,3.56348314,2483.6,2483.4,1.9135]
[1748857380886,3.56348314,2483.6,2483.4,1.141]
[1748857381093,4.02664391,2483.5,2483.2,0.7838]
[1748857381295,3.56348314,2483.3,2483.2,0.7838]
[1748857382624,8.25958132,2483.5,2483.2,0.7838]
[1748857382625,3.56348314,2483.5,2483.2,0.7838]
[1748857382828,4.8423623,2483.8,2483.2,0.7838]
[1748857382829,4.232,2483.6,2483.2,0.7838]
[1748857383041,4.232,2483.6,2483.4,4.02667127]
[1748857383410,4.232,2483.6,2483.3,4.02680957]
[1748857383803,3.56348314,2483.5,2483.3,4.02680957]
[1748857383999,3.56348314,2483.5,2483.2,0.7838]
[1748857385738,3.56348314,2483.5,2483.2,4.81077975]
[1748857386040,3.56348314,2483.6,2483.2,4.02702499]
[1748857386207,4.232,2483.5,2483.3,4.02689407]
[1748857386404,3.56348314,2483.6,2483.3,4.02689407]
[1748857386660,7.79448314,2483.6,2483.5,4.02657539]
[1748857387143,6.44197928,2483.9,2483.4,0.784]
[1748857387144,3.56348314,2483.8,2483.4,0.784]
[1748857387309,3.56348314,2483.8,2483.4,4.81066506]
[1748857387637,7.79448314,2483.8,2483.6,4.0262732]
[1748857387811,7.79448314,2483.8,2483.7,4.02625115]
[1748857388206,7.79448314,2483.8,2483.5,4.02650398]
[1748857388403,7.79448314,2483.8,2483.6,4.02639196]
[1748857389153,3.56348314,2483.8,2483.6,4.02639196]
[1748857389362,4.02577881,2484.0,2483.7,4.02614488]
[1748857389363,3.56348314,2484.0,2483.7,4.02614488]
[1748857389655,3.56348314,2484.0,2483.6,0.4810392]
[1748857389656,3.56348314,2484.0,2483.8,4.02602001]
[1748857389822,3.56348314,2484.0,2483.7,4.02617322]
[1748857390250,3.56348314,2483.8,2483.5,4.02651678]
[1748857390467,3.56348314,2483.6,2483.1,1.148]
[1748857390630,3.56348314,2483.3,2483.1,1.148]
[1748857391367,3.56348314,2483.3,2483.1,5.17521042]
[1748857391867,3.56348314,2483.3,2483.1,5.17520288]
[1748857392048,3.56348314,2483.3,2483.1,1.148]
[1748857393761,7.59044927,2483.3,2483.1,1.148]
[1748857393938,3.56348314,2483.3,2483.1,1.148]
[1748857398177,3.56348314,2483.3,2483.1,5.17522189]
[1748857398178,7.79348314,2483.3,2483.1,5.17522189]
[1748857398357,7.79348314,2483.3,2483.1,1.148]
[1748857398667,3.56348314,2483.3,2483.2,4.02706185]
[1748857398875,3.56348314,2483.3,2483.1,5.17514145]
[1748857399170,3.56348314,2483.6,2483.2,0.8188]
[1748857399573,4.229,2483.8,2483.6,4.02639429]
[1748857399873,3.56348314,2483.7,2483.6,4.02639429]
[1748857400371,3.56348314,2483.7,2483.3,0.8188]
[1748857400542,3.56348314,2483.7,2483.1,4.03720066]
[1748857400543,3.56348314,2483.5,2483.1,4.03720066]
[1748857400735,3.56348314,2483.2,2483.1,0.01]
[1748857403281,10.87930245,2483.3,2483.1,0.01]
[1748857403445,6.85238258,2483.3,2483.1,0.01]
[1748857403973,10.87930133,2483.3,2483.1,0.01]
[1748857404483,4.02706185,2483.2,2483.1,0.01]
[1748857405278,12.86867103,2483.3,2483.1,0.01]
[1748857406183,4.02706185,2483.2,2483.1,0.01]
[1748857407943,4.228,2483.2,2483.1,0.01]
[1748857408147,8.25506185,2483.2,2483.1,0.01]
[1748857408375,10.44326009,2483.2,2483.1,0.01]
[1748857410052,11.20856009,2483.2,2483.1,0.01]
[1748857410804,11.75856009,2483.2,2483.1,0.01]
[1748857411975,7.18149824,2483.2,2483.1,0.01]
[1748857412196,10.44326009,2483.2,2483.1,0.01]
[1748857412485,6.41619824,2483.2,2483.1,0.01]
[1748857412665,4.228,2483.2,2483.1,0.01]
[1748857413599,8.25506185,2483.2,2483.1,0.01]
[1748857414945,6.85238258,2483.3,2483.1,0.01]
[1748857415370,4.227,2483.4,2483.1,0.7671]
[1748857415576,4.227,2483.4,2483.1,0.01]
[1748857415577,11.30206393,2483.3,2483.1,0.01]
[1748857416283,4.02706185,2483.2,2483.1,0.01]
[1748857416475,7.27508258,2483.3,2483.1,0.01]
[1748857416675,11.50208258,2483.3,2483.1,0.01]
[1748857416876,11.07938258,2483.3,2483.1,0.01]
[1748857417072,15.10631263,2483.3,2483.1,0.01]
[1748857418174,4.02706185,2483.2,2483.1,0.01]
[1748857422875,4.80926185,2483.2,2483.1,0.01]
[1748857423889,7.77526185,2483.2,2483.1,0.01]
[1748857424070,10.06341995,2483.2,2483.1,0.01]
[1748857425267,17.20412555,2483.2,2483.1,0.01]
[1748857428111,13.63377275,2483.2,2483.1,0.01]
[1748857429314,17.20412555,2483.2,2483.1,0.01]
[1748857431081,13.63377275,2483.2,2483.1,0.01]
[1748857433333,17.85877275,2483.2,2483.1,0.01]
[1748857435614,17.85877275,2483.2,2482.4,1.135]
[1748857435615,4.02799391,2482.7,2482.4,1.135]
[1748857435787,3.5703528,2482.5,2482.4,1.135]
[1748857439310,3.5703528,2482.5,2482.3,0.8071]
[1748857439510,3.5703528,2482.5,2482.3,1.9421]
[1748857439927,3.5703528,2482.5,2482.3,1.135]
[1748857440755,4.02835965,2482.4,2482.1,0.01]
[1748857440955,3.5703528,2482.2,2482.1,0.01]
[1748857442098,8.35891757,2482.2,2482.1,0.01]
[1748857442299,11.93978983,2482.2,2482.1,0.01]
[1748857442500,14.90578983,2482.2,2482.1,0.01]
[1748857442700,14.90578983,2482.2,2481.4,0.7692]
[1748857442701,4.0295704,2481.7,2481.4,0.7692]
[1748857443001,3.5703528,2481.5,2481.4,0.7692]
[1748857444238,3.5703528,2481.5,2481.4,4.02998307]
[1748857444652,4.224,2481.6,2481.5,0.7692]
[1748857445148,3.5703528,2481.7,2481.5,0.7692]
[1748857445308,3.5703528,2481.7,2481.5,4.79897675]
[1748857446022,4.57870762,2482.2,2481.5,4.79897675]
[1748857446023,0.7704,2482.5,2482.0,0.7692]
[1748857446232,3.5703528,2482.2,2482.0,0.7692]
[1748857446406,3.5703528,2482.2,2482.0,4.79810527]
[1748857446603,7.59911443,2482.2,2482.0,0.7692]
[1748857446834,3.5703528,2482.2,2482.0,0.7692]
[1748857447118,4.75264918,2482.2,2482.0,0.7692]
[1748857450646,4.75264918,2482.2,2481.8,0.7967]
[1748857450943,3.5703528,2481.9,2481.7,1.132]
[1748857451129,7.7933528,2481.9,2481.7,1.132]
[1748857451329,7.7933528,2481.9,2481.3,0.7626]
[1748857451519,1.18224833,2481.8,2481.4,1.132]
[1748857451717,3.5703528,2481.5,2481.4,1.132]
[1748857455227,3.5703528,2481.5,2481.4,5.16198307]
[1748857455628,3.5703528,2481.5,2481.4,1.132]
[1748857455827,3.5703528,2481.5,2481.4,5.16198307]
[1748857456420,3.5703528,2481.5,2481.4,1.132]
[1748857456731,3.5703528,2481.5,2481.4,5.16198307]
[1748857457041,3.5703528,2481.5,2481.4,1.132]
[1748857459953,3.5703528,2481.5,2481.3,4.7927167]
[1748857460448,3.5703528,2481.5,2481.3,0.7626]
[1748857460855,3.5703528,2481.5,2481.3,4.7927245]
[1748857461891,3.5703528,2481.5,2481.2,1.133]
[1748857462056,3.5703528,2481.5,2481.3,4.03006457]
[1748857463273,3.5703528,2481.5,2481.2,5.16321852]
[1748857463560,4.222,2481.6,2481.2,5.16321852]
[1748857463561,3.5703528,2481.3,2481.2,1.133]
[1748857463769,3.5703528,2481.3,2481.2,5.16330791]
[1748857464648,3.5703528,2481.5,2481.4,4.02997208]
[1748857465948,3.5703528,2481.5,2481.3,0.7908]
[1748857466280,4.3941528,2481.5,2481.2,5.16323208]
[1748857466568,3.5703528,2481.3,2481.2,5.16323208]
[1748857466938,3.5703528,2481.3,2481.0,1.133]
[1748857467177,4.03005466,2481.4,2480.9,0.7696]
[1748857467178,3.5703528,2481.1,2480.9,0.7696]
[1748857467477,3.5703528,2481.1,2480.9,1.9026]
[1748857467835,3.5703528,2481.1,2480.9,5.93332818]
[1748857468035,3.5703528,2481.1,2481.0,4.0306328]
[1748857468832,4.221,2481.3,2481.1,4.03046375]
[1748857468833,7.7913528,2481.3,2481.1,4.03046375]
[1748857469028,3.5703528,2481.5,2481.2,4.03030791]
[1748857469235,8.0,2481.4,2481.2,4.03030791]
[1748857469489,3.5703528,2481.3,2481.2,4.03030791]
[1748857469781,3.5703528,2481.3,2481.1,4.03040833]
[1748857469937,3.5703528,2481.3,2481.0,4.03055963]
[1748857470276,3.5703528,2481.3,2481.1,4.03046234]
[1748857470470,3.5703528,2481.3,2481.2,4.03030791]
[1748857471238,8.0,2481.4,2481.2,4.85532867]
[1748857471643,8.0,2481.4,2481.3,4.03014548]
[1748857472328,3.5703528,2481.5,2481.3,4.03014548]
[1748857472329,11.5703528,2481.5,2481.4,4.02998307]
[1748857472529,11.5703528,2481.5,2481.3,4.03005403]
[1748857472734,11.5703528,2481.5,2481.2,4.85535549]
[1748857472735,11.5703528,2481.5,2481.4,4.02998307]
[1748857472934,11.5703528,2481.5,2481.2,0.8251]
[1748857472935,8.0,2481.6,2481.5,4.02978466]
[1748857473153,15.7913528,2481.7,2481.2,0.8251]
[1748857473154,7.7913528,2481.7,2481.4,4.02989074]
[1748857473348,12.81642398,2482.0,2481.4,4.02989074]
[1748857473349,3.5703528,2482.0,2481.6,0.8176]
[1748857473569,3.5703528,2482.0,2481.6,5.97720769]
[1748857473882,0.7903,2482.2,2481.6,5.97720769]
[1748857473883,3.5703528,2481.8,2481.6,5.97720727]
[1748857474385,3.5703528,2481.8,2481.6,1.9476]
[1748857474781,11.5703528,2481.8,2481.7,4.02949591]
[1748857475084,8.0,2481.8,2481.7,4.02949591]
[1748857475657,3.5703528,2482.1,2481.8,4.02929276]
[1748857475866,3.5703528,2482.1,2481.6,5.97719491]
[1748857475867,3.5703528,2482.1,2481.7,4.02944384]
[1748857476073,3.5703528,2482.1,2481.6,1.9476]
[1748857476074,3.5703528,2482.1,2481.8,4.02929301]
[1748857476275,8.0,2482.2,2481.6,1.9476]
[1748857476461,8.0,2481.9,2481.8,4.02924644]
[1748857476659,8.0,2481.9,2481.6,6.57490432]
[1748857476866,3.5703528,2481.8,2481.6,6.57490432]
[1748857477693,3.5703528,2481.8,2481.6,2.54535538]
[1748857477995,3.5703528,2481.8,2481.5,4.02973192]
[1748857477996,3.5703528,2481.8,2481.4,4.02993544]
[1748857478154,3.5703528,2481.6,2481.5,1.13]
[1748857480189,7.60001108,2481.6,2481.5,1.13]
[1748857480702,7.60008189,2481.6,2481.2,1.9536]
[1748857480850,3.5703528,2481.4,2481.2,5.98388264]
[1748857481452,3.5703528,2481.4,2481.3,4.03014548]
[1748857481859,4.219,2481.8,2481.3,1.00140175]
[1748857482063,3.5703528,2481.6,2481.4,4.02988128]
[1748857482876,3.5703528,2481.6,2481.2,5.98384795]
[1748857482877,3.5703528,2481.6,2481.2,1.9536]
[1748857483072,3.5703528,2481.4,2481.2,4.85381766]
[1748857483272,3.5703528,2481.4,2481.3,5.16014548]
[1748857483473,3.5703528,2481.4,2481.3,1.13]
[1748857483688,3.5703528,2481.4,2481.3,5.16014548]
[1748857484193,3.5703528,2481.6,2481.4,4.02996027]
[1748857484351,3.5703528,2481.6,2481.3,1.13]
[1748857484891,3.5703528,2481.6,2481.3,5.16006426]
[1748857486293,3.5703528,2481.6,2481.5,4.02982067]
[1748857486490,3.5703528,2481.6,2481.3,1.13]
[1748857486491,3.5703528,2481.6,2481.3,5.16002985]
[1748857486691,3.5703528,2481.6,2481.4,4.02996398]
[1748857488592,3.5703528,2481.6,2481.3,5.16010314]
[1748857488899,3.5703528,2481.6,2481.4,4.02987398]
[1748857489785,3.5703528,2481.6,2481.5,4.02982067]
[1748857490883,8.0,2481.9,2481.6,0.7671]
[1748857491062,8.0,2481.9,2481.7,4.02938752]
[1748857491392,8.0,2481.9,2481.6,4.79665423]
[1748857491601,8.0,2481.9,2481.7,4.02941325]
[1748857491900,8.0,2481.9,2481.7,4.02941913]
[1748857492371,8.0,2481.9,2481.6,0.7671]
[1748857492584,3.5703528,2481.8,2481.6,0.7671]
[1748857492978,3.5703528,2481.8,2481.4,4.02990755]
[1748857493308,3.5703528,2481.6,2481.5,4.02978357]
[1748857493607,3.5703528,2481.6,2481.3,1.961]
[1748857493764,3.5703528,2481.6,2481.4,4.02983573]
[1748857494165,3.5703528,2481.6,2481.4,4.02985879]
[1748857494366,3.5703528,2481.6,2481.3,1.961]
[1748857494700,3.5703528,2481.6,2481.5,4.02982067]
[1748857495107,3.5703528,2481.8,2481.5,4.02982067]
[1748857500040,3.5703528,2481.6,2481.3,1.961]
[1748857500242,3.5703528,2481.4,2481.3,1.13]
[1748857500524,11.5703528,2481.9,2481.5,4.86190998]
[1748857500686,11.5703528,2481.9,2481.5,0.8322]
[1748857500894,0.8071,2481.6,2481.0,0.7989]
[1748857501226,4.3774528,2481.6,2481.1,1.13]
[1748857501390,4.3774528,2481.6,2481.3,4.03010781]
[1748857501589,5.63963736,2481.6,2481.3,4.03010781]
[1748857502043,5.63963736,2481.6,2481.1,5.16041342]
[1748857502044,3.5703528,2481.4,2481.1,1.13]
[1748857502220,3.5703528,2481.4,2481.2,4.03018689]
[1748857502702,3.5703528,2481.4,2481.1,1.13]
[1748857502899,3.5703528,2481.2,2481.1,1.13]
[1748857503187,3.5703528,2481.2,2481.1,5.16047035]
[1748857503412,3.5703528,2481.2,2481.1,1.13]
[1748857503592,3.5703528,2481.2,2481.1,5.16047035]
[1748857503793,8.0,2481.5,2481.2,4.03024019]
[1748857503993,4.98023833,2481.5,2481.3,4.0300742]
[1748857504224,4.98023833,2481.5,2481.2,0.7843]
[1748857504225,3.5703528,2481.5,2481.2,4.81452684]
[1748857504793,3.5703528,2481.5,2481.2,4.03022684]
[1748857505144,8.0,2481.9,2481.5,4.02971378]
[1748857505356,3.5703528,2481.8,2481.4,4.83099278]
[1748857505849,3.5703528,2481.8,2481.5,4.0298187]
[1748857505992,3.5703528,2481.8,2481.4,4.83105641]
[1748857505993,3.5703528,2481.8,2481.4,4.83100178]
[1748857506456,12.82231368,2482.0,2481.4,0.8011]
[1748857506590,3.5703528,2481.8,2481.5,4.0297372]
[1748857506793,3.5703528,2481.8,2481.4,0.8011]
[1748857507082,3.5703528,2481.6,2481.3,4.03012336]
[1748857507250,4.02941065,2481.8,2481.3,4.03012336]
[1748857507544,3.5703528,2481.6,2481.3,4.03012336]
[1748857508024,3.5703528,2481.4,2481.3,1.127]
[1748857508622,7.60033587,2481.4,2481.3,1.127]
[1748857508820,3.5703528,2481.4,2481.0,5.15756508]
[1748857509028,3.5703528,2481.4,2481.0,1.127]
[1748857509324,3.5703528,2481.5,2481.2,0.7985]
[1748857509727,3.5703528,2481.5,2481.2,4.82874106]
[1748857509932,8.03363812,2481.5,2481.2,1.127]
[1748857510296,3.5703528,2481.3,2481.2,1.127]
[1748857512498,4.3345528,2481.3,2480.7,4.82950111]
[1748857512719,0.7642,2480.7,2480.1,0.01]
[1748857512922,3.5703528,2480.2,2480.1,0.01]
[1748857513212,4.3882528,2480.2,2480.1,0.01]
[1748857513431,0.8179,2480.0,2479.8,3.00321805]